bitfinex/quotes_ETHUSD_20230110
["timestamp","ask_amount","ask_price","bid_price","bid_amount"]
[1673312761775,29.50835411,1327.8,1327.3,3.10555835]
[1673312761986,29.50835411,1327.8,1327.3,3.03955835]
[1673312762968,2.5,1327.7,1327.3,3.03955835]
[1673312763140,15.065,1327.6,1327.3,3.03955835]
[1673312763350,22.6635,1327.6,1327.3,3.03955835]
[1673312763825,0.066,1327.6,1327.3,18.10768835]
[1673312763991,7.53185,1327.7,1327.3,22.60688751]
[1673312764199,1.412,1327.7,1327.3,18.17368835]
[1673312764412,1.346,1327.7,1327.3,25.70777835]
[1673312764665,16.41004,1327.7,1327.3,25.70777835]
[1673312764839,1.412,1327.7,1327.3,18.17368835]
[1673312765051,1.346,1327.7,1327.3,18.17368835]
[1673312765405,1.346,1327.7,1327.3,25.70777835]
[1673312765926,16.40977,1327.7,1327.3,29.50543899]
[1673312766135,15.12977,1327.7,1327.3,29.50543899]
[1673312766505,15.12977,1327.7,1327.3,35.06805231]
[1673312767454,22.66146,1327.7,1327.3,19.99987231]
[1673312767663,15.12964,1327.7,1327.3,35.06805231]
[1673312768131,7.59782,1327.7,1327.3,35.06805231]
[1673312768357,22.66146,1327.7,1327.3,27.53396231]
[1673312768657,22.66146,1327.7,1327.4,2.5]
[1673312768816,15.12964,1327.7,1327.4,21.32370523]
[1673312769026,15.12964,1327.7,1327.4,21.38970523]
[1673312769706,15.12964,1327.7,1327.4,3.82280523]
[1673312770021,30.19328,1327.7,1327.3,21.63913231]
[1673312770427,22.66146,1327.7,1327.3,29.17313231]
[1673312770640,22.66146,1327.7,1327.3,12.27510745]
[1673312770969,23.78854347,1327.7,1327.3,19.80915745]
[1673312771370,22.59885,1327.5,1327.3,12.27510745]
[1673312771689,22.66485,1327.5,1327.3,3.10180745]
[1673312771901,24.01085,1327.5,1327.3,3.03580745]
[1673312774964,2.715,1327.4,1327.3,0.03580745]
[1673312775137,10.24852,1327.4,1327.3,0.03580745]
[1673312775338,10.31452,1327.4,1327.3,0.03580745]
[1673312775885,2.781,1327.4,1327.3,0.03580745]
[1673312776066,2.715,1327.4,1327.3,0.03580745]
[1673312778330,2.715,1327.4,1327.3,7.56989745]
[1673312778645,1.358,1327.4,1327.3,22.70407745]
[1673312779037,1.358,1327.4,1327.3,15.16998745]
[1673312780275,1.356,1327.5,1327.3,24.97921352]
[1673312780520,0.066,1327.6,1327.3,24.97921352]
[1673312780738,9.31618347,1327.7,1327.3,24.97921352]
[1673312780951,11.00673738,1327.7,1327.3,24.97921352]
[1673312781271,6.81973738,1327.7,1327.3,24.97921352]
[1673312781578,1.75818347,1327.7,1327.4,2.84730385]
[1673312781746,1.69218347,1327.7,1327.5,22.59885]
[1673312781960,1.69218347,1327.7,1327.5,22.66485]
[1673312782844,1.12708347,1327.7,1327.5,22.66485]
[1673312783056,1.12708347,1327.7,1327.5,25.71939139]
[1673312783213,1.12708347,1327.7,1327.5,18.18644139]
[1673312783214,1.17708347,1327.7,1327.5,18.18644139]
[1673312783429,1.12708347,1327.7,1327.5,10.65349139]
[1673312783767,1.12708347,1327.7,1327.5,18.18644139]
[1673312783947,1.12708347,1327.7,1327.5,25.71939139]
[1673312784368,1.12708347,1327.7,1327.6,0.34748761]
[1673312784612,1.12708347,1327.7,1327.6,7.77986761]
[1673312784823,1.12708347,1327.7,1327.6,22.91062761]
[1673312785314,1.12708347,1327.7,1327.6,15.13076]
[1673312787478,1.12708347,1327.7,1327.6,25.682726]
[1673312787632,1.12708347,1327.8,1327.6,29.48038664]
[1673312788116,2.81763738,1327.9,1327.6,29.48038664]
[1673312788261,2.81763738,1327.9,1327.7,2.5]
[1673312788471,2.81763738,1327.9,1327.7,13.22948866]
[1673312788680,2.81763738,1327.9,1327.8,15.0625]
[1673312788951,2.81763738,1327.9,1327.8,15.1285]
[1673312789105,2.81763738,1327.9,1327.8,22.65975]
[1673312789315,2.81763738,1327.9,1327.8,23.00644372]
[1673312789526,1.12708347,1327.9,1327.8,15.47519372]
[1673312790168,2.81763738,1327.9,1327.8,15.47519372]
[1673312790507,1.12708347,1327.9,1327.8,15.1285]
[1673312790931,2.81763738,1327.9,1327.8,15.1285]
[1673312791576,1.12708347,1327.9,1327.8,15.1285]
[1673312791752,2.81763738,1327.9,1327.8,7.59725]
[1673312792341,2.81763738,1327.9,1327.8,15.1285]
[1673312792721,2.81763738,1327.9,1327.8,22.65975]
[1673312793102,1.12708347,1327.9,1327.8,22.65975]
[1673312793309,1.12708347,1327.9,1327.8,15.1285]
[1673312793543,2.81763738,1327.9,1327.8,15.1285]
[1673312793756,2.81763738,1327.9,1327.8,22.65975]
[1673312794840,1.12708347,1327.9,1327.8,22.65975]
[1673312795011,3.33140831,1327.9,1327.8,0.066]
[1673312795225,3.33140831,1327.9,1327.7,7.54338288]
[1673312795432,2.81406632,1327.9,1327.7,7.60938288]
[1673312796274,2.81406632,1327.9,1327.7,8.02547805]
[1673312797992,10.34483632,1327.9,1327.7,8.02547805]
[1673312798215,10.41083632,1327.9,1327.7,8.02547805]
[1673312798516,9.28732391,1327.9,1327.7,8.02547805]
[1673312798887,9.28732391,1327.9,1327.7,7.97547805]
[1673312800105,9.28732391,1327.9,1327.7,0.48209517]
[1673312800269,34.1335258,1327.9,1327.7,0.41609517]
[1673312800489,26.6027558,1327.9,1327.7,0.41609517]
[1673312801202,26.6027558,1327.9,1327.6,3.0]
[1673312801412,24.34868391,1327.9,1327.6,3.0]
[1673312801620,26.6027558,1327.9,1327.6,3.0]
[1673312801869,19.1219858,1327.9,1327.6,10.53198]
[1673312802058,16.86791391,1327.9,1327.6,10.54798]
[1673312802274,16.86791391,1327.9,1327.6,18.08036]
[1673312802479,24.39859391,1327.9,1327.6,10.54798]
[1673312802888,16.86791391,1327.9,1327.6,10.54798]
[1673312803615,16.86791391,1327.9,1327.6,18.08036]
[1673312803830,16.81791391,1327.9,1327.6,18.08036]
[1673312804040,16.86791391,1327.9,1327.6,18.08036]
[1673312804497,1.80655391,1327.9,1327.6,25.61274]
[1673312804672,1.74055391,1327.9,1327.6,31.93067317]
[1673312804878,1.74055391,1327.9,1327.6,24.39829317]
[1673312805128,9.27142391,1327.9,1327.6,31.93067317]
[1673312805469,1.80655391,1327.9,1327.6,39.46305317]
[1673312805773,1.17637878,1327.9,1327.6,31.93067317]
[1673312805981,1.12637878,1327.9,1327.6,39.46305317]
[1673312806351,1.12637878,1327.9,1327.6,35.72833381]
[1673312807721,2.82869557,1328.0,1327.7,3.79766064]
[1673312807928,1.12637878,1328.0,1327.8,26.39141064]
[1673312808151,1.12637878,1328.0,1327.8,18.92616064]
[1673312810092,1.12637878,1328.0,1327.8,26.45741064]
[1673312810427,1.12637878,1328.0,1327.8,15.1285]
[1673312810638,1.12637878,1328.0,1327.8,22.65975]
[1673312810849,1.12637878,1328.0,1327.8,25.19031644]
[1673312811585,1.12637878,1328.0,1327.8,17.65906644]
[1673312811900,1.12637878,1328.0,1327.8,15.1285]
[1673312812264,1.12637878,1328.0,1327.8,22.65975]
[1673312814056,1.12637878,1328.0,1327.8,15.1285]
[1673312814270,1.12637878,1328.0,1327.8,22.65975]
[1673312815055,15.17321118,1328.3,1327.8,22.65975]
[1673312815056,4.29032692,1328.7,1327.9,38.31566064]
[1673312815368,5.58505376,1328.9,1328.6,3.79766064]
[1673312815369,0.004,1328.8,1328.6,3.79766064]
[1673312815575,0.20677429,1329.0,1328.7,16.21752602]
[1673312815787,3.9385805,1329.1,1328.8,33.97755294]
[1673312815947,0.01,1329.2,1329.0,18.175]
[1673312816161,0.7349002,1329.4,1329.1,10.07816064]
[1673312816538,0.7349002,1329.4,1329.1,0.066]
[1673312816679,0.7349002,1329.4,1328.9,0.066]
[1673312816893,0.57616288,1329.3,1328.7,10.52603]
[1673312817119,1.358,1329.2,1328.7,7.59003]
[1673312817416,1.356,1329.0,1328.7,11.38958064]
[1673312817621,1.36776288,1329.0,1328.7,0.066]
[1673312817889,1.36776288,1329.0,1328.6,0.066]
[1673312818088,1.36776288,1329.0,1328.5,22.64676]
[1673312818308,1.358,1328.9,1328.5,0.066]
[1673312818621,1.36976288,1328.8,1328.4,15.12152]
[1673312818839,2.5,1328.7,1328.4,18.91918064]
[1673312818991,2.5,1328.7,1328.4,3.86366064]
[1673312819200,2.5,1328.7,1328.4,3.79766064]
[1673312819940,3.858,1328.7,1328.3,0.45905122]
[1673312820148,1.358,1328.6,1328.3,3.39305122]
[1673312820390,2.566,1328.7,1328.6,1.12076941]
[1673312820601,2.5,1328.7,1328.6,2.47876941]
[1673312822825,2.566,1328.8,1328.6,2.47876941]
[1673312822986,2.5,1328.8,1328.6,2.47876941]
[1673312824313,12.02443288,1328.9,1328.6,2.47876941]
[1673312825423,19.54950288,1328.9,1328.6,2.47876941]
[1673312826147,23.24716352,1328.9,1328.6,2.47876941]
[1673312826310,31.4526,1328.7,1328.6,2.47876941]
[1673312826519,31.53036288,1328.7,1328.6,2.47876941]
[1673312826937,32.09506288,1328.7,1328.6,2.47876941]
[1673312827405,24.56891288,1328.7,1328.6,2.47876941]
[1673312827944,25.92591288,1328.7,1328.6,2.47876941]
[1673312829388,1.99046288,1328.7,1328.6,2.47876941]
[1673312829565,0.5647,1328.7,1328.6,2.47876941]
[1673312829780,10.59085,1328.7,1328.6,2.47876941]
[1673312830019,10.65685,1328.7,1328.6,2.47876941]
[1673312830247,3.1307,1328.7,1328.6,2.47876941]
[1673312830451,10.59085,1328.7,1328.6,2.47876941]
[1673312830624,10.65685,1328.7,1328.6,2.47876941]
[1673312831039,10.50685,1328.7,1328.6,2.47876941]
[1673312831823,10.09215,1328.7,1328.6,2.47876941]
[1673312832192,0.066,1328.7,1328.6,2.47876941]
[1673312832400,0.5646,1328.8,1328.6,2.47876941]
[1673312832957,8.09029,1328.8,1328.6,2.47876941]
[1673312833149,8.15629,1328.8,1328.6,2.47876941]
[1673312834135,15.68198,1328.8,1328.6,2.47876941]
[1673312834507,23.21943288,1328.8,1328.6,2.47876941]
[1673312834712,2.5,1328.7,1328.6,2.47876941]
[1673312835033,10.02615,1328.7,1328.6,2.47876941]
[1673312835246,10.09215,1328.7,1328.6,2.47876941]
[1673312835681,17.6183,1328.7,1328.6,2.47876941]
[1673312836295,15.1183,1328.7,1328.6,2.47876941]
[1673312836546,0.066,1328.7,1328.6,2.47876941]
[1673312836869,15.69403288,1328.8,1328.6,2.47876941]
[1673312837181,15.12943288,1328.8,1328.6,2.47876941]
[1673312837345,7.60345288,1328.8,1328.6,2.47876941]
[1673312837551,17.62952288,1328.8,1328.6,2.47876941]
[1673312838181,7.60345288,1328.8,1328.6,2.47876941]
[1673312839320,15.12952288,1328.8,1328.6,2.47876941]
[1673312841755,4.585,1329.0,1328.8,1.99210748]
[1673312841756,0.007,1329.0,1328.8,1.99210748]
[1673312841967,30.415,1329.3,1328.9,16.28440792]
[1673312841968,0.016,1329.3,1328.9,16.28440792]
[1673312842278,0.90980588,1329.4,1329.0,3.0]
[1673312842625,0.90980588,1329.4,1328.9,0.6306]
[1673312842626,8.43222588,1329.4,1328.9,0.6306]
[1673312842799,1.01678647,1329.4,1328.9,0.5646]
[1673312843013,2.5,1329.3,1328.9,0.5646]
[1673312843879,2.5,1329.3,1328.9,8.08961]
[1673312844059,3.47580588,1329.4,1328.9,15.68063]
[1673312844291,3.40980588,1329.4,1328.9,21.21791775]
[1673312844466,0.90980588,1329.4,1329.0,13.14966064]
[1673312844637,0.90980588,1329.4,1329.1,27.49383]
[1673312844854,0.90980588,1329.4,1329.1,24.10698906]
[1673312845105,0.90980588,1329.4,1329.1,16.58321906]
[1673312845325,0.90980588,1329.4,1329.1,24.10709906]
[1673312845492,0.90980588,1329.4,1329.1,22.74909906]
[1673312845704,0.90980588,1329.4,1329.1,30.27297906]
[1673312846264,0.90980588,1329.4,1329.1,27.27297906]
[1673312846689,0.90980588,1329.4,1329.1,7.58977]
[1673312847001,0.90980588,1329.4,1329.1,0.066]
[1673312847002,24.83420876,1329.4,1329.1,0.066]
[1673312847161,2.5,1329.3,1328.8,20.35230748]
[1673312847372,2.5,1329.3,1328.8,27.51304887]
[1673312847580,2.5,1329.1,1328.8,35.60321887]
[1673312847835,0.066,1329.2,1328.9,5.15366064]
[1673312848009,0.90980588,1329.4,1329.0,43.21427164]
[1673312848220,0.90980588,1329.4,1329.2,22.56996]
[1673312848463,0.90980588,1329.4,1329.2,25.27272206]
[1673312849313,0.90980588,1329.4,1329.2,10.22608206]
[1673312850001,0.90980588,1329.4,1329.2,17.74940206]
[1673312850207,0.90980588,1329.4,1329.2,25.27272206]
[1673312850419,0.90980588,1329.4,1329.2,26.63072206]
[1673312852238,0.90980588,1329.4,1329.3,5.15566064]
[1673312852473,0.90980588,1329.4,1329.3,8.79251364]
[1673312852786,0.90980588,1329.4,1329.3,31.36076364]
[1673312853307,0.90780588,1329.4,1329.3,31.36076364]
[1673312853522,0.14060588,1329.4,1329.3,40.53925313]
[1673312853884,0.14060588,1329.4,1329.3,14.04885585]
[1673312854127,0.14060588,1329.4,1329.3,21.57160585]
[1673312854635,0.14060588,1329.4,1329.3,29.09435585]
[1673312854842,0.14060588,1329.4,1329.3,21.57160585]
[1673312855290,0.14060588,1329.4,1329.3,20.22560585]
[1673312855497,0.14060588,1329.4,1329.3,27.74835585]
[1673312855879,0.14060588,1329.4,1329.3,20.22560585]
[1673312856090,0.14060588,1329.4,1329.3,12.70285585]
[1673312856555,0.14060588,1329.4,1329.3,20.22560585]
[1673312857084,1.34560588,1329.4,1329.3,12.13845585]
[1673312857242,1.34560588,1329.4,1329.3,0.41194221]
[1673312857243,16.38998588,1329.4,1329.3,0.41194221]
[1673312857460,8.88379588,1329.4,1329.3,0.34594221]
[1673312857818,7.67879588,1329.4,1329.3,0.34594221]
[1673312858398,15.20098588,1329.4,1329.3,0.34594221]
[1673312858625,22.73493876,1329.4,1329.3,0.34594221]
[1673312858852,15.21274876,1329.4,1329.3,0.34594221]
[1673312859067,22.73493876,1329.4,1329.3,0.34594221]
[1673312859257,22.73493876,1329.4,1329.1,0.066]
[1673312859468,22.73493876,1329.4,1329.0,9.3674]
[1673312859469,3.848,1329.3,1329.0,9.4334]
[1673312859679,1.36776288,1329.2,1329.0,0.066]
[1673312859910,22.57164,1329.1,1328.9,10.5065]
[1673312860121,22.58764,1329.1,1328.9,0.066]
[1673312860357,15.06376,1329.1,1328.8,10.05810748]
[1673312860521,13.94336858,1329.1,1328.8,10.05810748]
[1673312861385,6.41948858,1329.1,1328.8,12.26785823]
[1673312861835,0.05,1329.2,1329.1,1.97575168]
[1673312862183,0.70500588,1329.4,1329.1,1.97575168]
[1673312862184,0.14060588,1329.4,1329.1,5.77341232]
[1673312862402,0.14060588,1329.4,1329.1,16.38767555]
[1673312862570,0.14060588,1329.4,1329.1,8.86395555]
[1673312863185,15.18512588,1329.4,1329.1,8.86395555]
[1673312863411,22.72338588,1329.4,1329.1,5.06629491]
[1673312863629,22.72338588,1329.4,1329.1,2.04175168]
[1673312863864,22.72338588,1329.4,1329.1,1.97575168]
[1673312864462,3.0644,1329.3,1329.1,1.97575168]
[1673312864671,15.04664,1329.2,1329.1,1.97575168]
[1673312864884,15.06264,1329.2,1329.1,1.97575168]
[1673312865958,22.58596,1329.2,1329.1,1.97575168]
[1673312867634,25.09772288,1329.2,1329.1,1.97575168]
[1673312867964,27.79072288,1329.2,1329.1,1.97575168]
[1673312868175,2.5,1329.1,1328.9,0.066]
[1673312868387,2.5,1329.1,1328.8,1.99210748]
[1673312868388,30.10956288,1329.0,1328.8,1.99210748]
[1673312868540,30.12556288,1329.0,1328.8,1.99210748]
[1673312870493,31.32356288,1329.0,1328.8,1.99210748]
[1673312871225,30.12556288,1329.0,1328.8,1.99210748]
[1673312872347,2.5,1328.9,1328.8,1.99210748]
[1673312872539,25.07506,1328.9,1328.8,1.99210748]
[1673312872905,25.09106,1328.9,1328.8,1.99210748]
[1673312875339,0.016,1328.9,1328.8,1.99210748]
[1673312875553,15.05004,1328.9,1328.8,1.99210748]
[1673312875716,22.59106,1328.9,1328.8,1.99210748]
[1673312881339,30.11608,1328.9,1328.8,1.99210748]
[1673312881549,31.48617226,1328.9,1328.8,7.48e-06]
[1673312881760,48.30681226,1328.9,1328.6,2.47876941]
[1673312882076,0.5646,1328.8,1328.6,2.47876941]
[1673312882398,30.1046,1328.7,1328.6,2.47876941]
[1673312882547,31.3256,1328.7,1328.6,2.47876941]
[1673312885310,35.12326064,1328.7,1328.6,2.47876941]
[1673312885641,35.13502352,1328.7,1328.6,2.47876941]
[1673312892793,35.27902352,1328.7,1328.6,2.47876941]
[1673312896946,23.95521288,1328.7,1328.6,2.47876941]
[1673312897161,22.60621288,1328.7,1328.6,2.47876941]
[1673312898012,7.55391288,1328.7,1328.6,2.47876941]
[1673312899437,22.60621288,1328.7,1328.6,2.47876941]
[1673312899999,22.60621288,1328.7,1328.6,2.72916257]
[1673312900000,0.016,1328.7,1328.6,2.72916257]
[1673312900171,22.58845,1328.7,1328.6,2.47876941]
[1673312900370,22.59445,1328.7,1328.6,2.47876941]
[1673312901835,7.54215,1328.7,1328.6,2.47876941]
[1673312902047,0.05,1328.8,1328.7,3.11281203]
[1673312902306,10.46924,1329.1,1328.7,3.11281203]
[1673312902512,25.53365,1329.1,1328.7,3.11281203]
[1673312902733,10.02471,1329.0,1328.7,4.94979349]
[1673312902886,10.02471,1329.0,1328.7,3.11281203]
[1673312902887,17.56542,1329.0,1328.7,3.11281203]
[1673312904093,25.09013,1329.0,1328.7,3.11281203]
[1673312905475,30.24579064,1329.0,1328.7,3.11281203]
[1673312905616,0.01176288,1328.9,1328.7,3.11281203]
[1673312905830,22.57674,1328.8,1328.7,3.11281203]
[1673312906059,22.59274,1328.8,1328.7,3.11281203]
[1673312908366,22.59274,1328.8,1328.7,3.4097684]
[1673312908574,30.11832,1328.8,1328.7,3.4097684]
[1673312909441,30.11832,1328.8,1328.7,3.11281203]
[1673312910260,31.47532,1328.8,1328.7,3.11281203]
[1673312910499,31.47532,1328.8,1328.7,3.40928981]
[1673312911189,30.11832,1328.8,1328.7,3.40928981]
[1673312911394,22.59274,1328.8,1328.7,3.40928981]
[1673312911850,23.79774,1328.8,1328.7,3.40928981]
[1673312912065,23.79774,1328.8,1328.7,9.81e-06]
[1673312912066,28.16000064,1328.8,1328.7,9.81e-06]
[1673312912286,28.16000064,1328.8,1328.5,0.09116215]
[1673312912287,2.5,1328.7,1328.5,0.09116215]
[1673312912481,30.10684,1328.6,1328.5,0.02516215]
[1673312912703,32.83484,1328.6,1328.5,0.02516215]
[1673312913537,32.84660288,1328.6,1328.5,0.02516215]
[1673312914762,31.48960288,1328.6,1328.5,0.02516215]
[1673312915177,37.82971069,1328.6,1328.5,2.15e-06]
[1673312915387,38.39441069,1328.6,1328.4,0.02516215]
[1673312915600,3.858,1328.5,1328.4,0.02516215]
[1673312915970,26.43984,1328.5,1328.4,0.02516215]
[1673312916125,26.45584,1328.5,1328.4,0.02516215]
[1673312916560,22.59784,1328.5,1328.4,0.02516215]
[1673312918116,33.92278064,1328.5,1328.4,0.02516215]
[1673312920751,38.00378064,1328.5,1328.2,10.6284]
[1673312921166,7.52841,1328.3,1328.2,10.6284]
[1673312921375,30.12964,1328.3,1328.2,0.066]
[1673312921635,30.12964,1328.3,1328.1,9.54204646]
[1673312922061,30.12964,1328.3,1328.1,0.09554646]
[1673312922232,30.12964,1328.3,1328.1,0.02954646]
[1673312924055,2.5,1328.2,1328.1,0.02954646]
[1673312924230,30.12964,1328.3,1328.1,0.02954646]
[1673312924231,30.17964,1328.3,1328.1,0.02954646]
[1673312924434,30.12964,1328.3,1328.1,0.02954646]
[1673312924889,22.58694,1328.2,1328.1,0.02954646]
[1673312925216,22.60294,1328.2,1328.1,0.02954646]
[1673312926961,30.13192,1328.2,1328.1,0.02954646]
[1673312927410,22.60294,1328.2,1328.1,0.02954646]
[1673312930798,0.1,1328.3,1328.2,1.97684247]
[1673312931096,0.05,1328.3,1328.2,2.29798136]
[1673312932105,7.52841,1328.3,1328.2,2.29798136]
[1673312932355,7.54441,1328.3,1328.2,2.29798136]
[1673312933999,15.07282,1328.3,1328.2,2.29798136]
[1673312940307,7.54441,1328.3,1328.2,2.29798136]
[1673312940569,15.07282,1328.3,1328.2,2.29798136]
[1673312942035,13.95183325,1328.3,1328.2,2.29798136]
[1673312942406,6.42342325,1328.3,1328.2,2.29798136]
[1673312942621,13.95183325,1328.3,1328.2,2.29798136]
[1673312943926,6.42342325,1328.3,1328.2,2.29798136]
[1673312944103,13.95183325,1328.3,1328.2,2.29798136]
[1673312944650,6.42342325,1328.3,1328.2,2.29798136]
[1673312945153,13.95183325,1328.3,1328.2,2.29798136]
[1673312945578,21.48024325,1328.3,1328.2,2.29798136]
[1673312945824,21.48024325,1328.3,1328.2,1.97684247]
[1673312946193,13.95183325,1328.3,1328.2,1.97684247]
[1673312946438,21.48024325,1328.3,1328.2,1.97684247]
[1673312948130,13.95183325,1328.3,1328.2,1.97684247]
[1673312948834,6.42342325,1328.3,1328.2,1.97684247]
[1673312949285,0.016,1328.3,1328.2,1.97684247]
[1673312949541,7.52841,1328.3,1328.2,1.97684247]
[1673312949709,7.54441,1328.3,1328.2,1.97684247]
[1673312950105,22.60123,1328.3,1328.2,1.97684247]
[1673312950348,30.12964,1328.3,1328.2,1.97684247]
[1673312953269,30.14140288,1328.3,1328.2,1.97684247]
[1673312955917,7.55617288,1328.3,1328.2,1.97684247]
[1673312956149,0.02776288,1328.3,1328.2,1.97684247]
[1673312956358,7.52841,1328.3,1328.2,1.97684247]
[1673312956567,0.016,1328.3,1328.2,1.97684247]
[1673312956785,22.60067,1328.4,1328.2,1.97684247]
[1673312959567,30.12907,1328.4,1328.2,1.97684247]
[1673312962319,22.60067,1328.4,1328.2,1.97684247]
[1673312964244,22.60067,1328.4,1328.2,1.97337468]
[1673312966448,0.016,1328.4,1328.2,1.97337468]
[1673312966770,26.69141288,1328.5,1328.2,1.97337468]
[1673312967132,37.59738399,1328.5,1328.2,1.97337468]
[1673312967383,0.5648,1328.4,1328.2,1.97337468]
[1673312967576,15.05639,1328.4,1328.2,1.97337468]
[1673312967790,15.07239,1328.4,1328.2,1.97337468]
[1673312968112,7.54405,1328.4,1328.2,1.97337468]
[1673312968497,15.0721,1328.4,1328.2,1.97337468]
[1673312969358,22.60015,1328.4,1328.2,1.97337468]
[1673312971332,0.016,1328.4,1328.2,1.97337468]
[1673312971543,15.61305399,1328.5,1328.2,24.56027468]
[1673312971544,4.097,1328.5,1328.2,24.56027468]
[1673312971792,4.097,1328.5,1328.2,9.56831468]
[1673312971793,4.081,1328.5,1328.2,9.56831468]
[1673312972010,11.60843,1328.5,1328.2,17.09729468]
[1673312972214,4.097,1328.5,1328.2,20.56390987]
[1673312972408,4.081,1328.5,1328.2,28.09288987]
[1673312974277,4.081,1328.5,1328.2,20.56390987]
[1673312974278,11.60844,1328.5,1328.2,20.56390987]
[1673312974489,11.62444,1328.5,1328.2,20.56390987]
[1673312975031,11.62444,1328.5,1328.2,28.09288987]
[1673312975244,11.62444,1328.5,1328.2,20.56390987]
[1673312975904,11.62444,1328.5,1328.2,28.09288987]
[1673312977864,4.097,1328.5,1328.2,28.09288987]
[1673312978070,4.081,1328.5,1328.2,28.09288987]
[1673312978326,11.60832,1328.5,1328.2,20.56390987]
[1673312978556,11.62432,1328.5,1328.2,20.56390987]
[1673312979290,19.15164,1328.5,1328.2,13.03492987]
[1673312979471,19.15164,1328.5,1328.2,20.56390987]
[1673312979858,11.62432,1328.5,1328.2,28.09288987]
[1673312980097,11.62432,1328.5,1328.2,20.56390987]
[1673312981510,11.62432,1328.5,1328.2,28.09288987]
[1673312982509,11.62432,1328.5,1328.2,20.56390987]
[1673312982767,11.62432,1328.5,1328.2,28.09288987]
[1673312983144,11.62432,1328.5,1328.2,20.56390987]
[1673312983511,11.62432,1328.5,1328.2,28.09288987]
[1673312984195,11.62432,1328.5,1328.2,20.56390987]
[1673312984611,19.15164,1328.5,1328.2,20.56390987]
[1673312985358,11.62432,1328.5,1328.2,20.56390987]
[1673312987660,11.62432,1328.5,1328.2,17.09729468]
[1673312987868,19.1516,1328.5,1328.2,17.09729468]
[1673312988080,26.67888,1328.5,1328.2,2.03937468]
[1673312988335,19.15156,1328.5,1328.2,1.97337468]
[1673312988506,26.67884,1328.5,1328.2,1.97337468]
[1673312990235,15.05613,1328.4,1328.2,1.97337468]
[1673312990440,15.07213,1328.4,1328.2,1.97337468]
[1673312991250,22.60033,1328.4,1328.2,1.97337468]
[1673312991594,15.07213,1328.4,1328.2,1.97337468]
[1673312993076,7.54393,1328.4,1328.2,1.97337468]
[1673312994142,7.54393,1328.4,1328.2,3.67637468]
[1673312994329,7.54393,1328.4,1328.2,3.67434433]
[1673312995106,7.54393,1328.4,1328.2,11.20329433]
[1673312995276,0.016,1328.4,1328.2,11.26929433]
[1673312995495,19.16366288,1328.5,1328.2,11.26929433]
[1673312995719,7.52793,1328.4,1328.2,3.74034433]
[1673312996047,15.07186,1328.4,1328.2,3.67434433]
[1673312996952,22.59979,1328.4,1328.2,1.97134433]
[1673312997158,15.63666,1328.4,1328.2,1.97134433]
[1673312997505,22.59979,1328.4,1328.2,1.97134433]
[1673312998121,22.64979,1328.4,1328.2,1.97134433]
[1673312998428,22.59979,1328.4,1328.2,1.97134433]
[1673313001593,30.12772,1328.4,1328.2,1.97134433]
[1673313004946,35.61538064,1328.4,1328.2,1.97134433]
[1673313005292,2.5,1328.3,1328.2,1.97134433]
[1673313005507,25.08523,1328.3,1328.2,1.97134433]
[1673313005664,30.60289064,1328.3,1328.2,1.97134433]
[1673313005876,35.03859756,1328.3,1328.2,4.33e-06]
[1673313006221,34.54599175,1328.3,1328.2,4.33e-06]
[1673313007369,31.16779064,1328.3,1328.2,4.33e-06]
[1673313007917,2.5,1328.2,1327.9,0.10633688]
[1673313008111,2.5,1327.9,1327.7,0.11011027]
[1673313008323,3.065,1327.9,1327.7,0.04411027]
[1673313008540,30.13676288,1327.8,1327.7,0.04411027]
[1673313008727,30.15276288,1327.8,1327.7,0.04411027]
[1673313010338,31.85776288,1327.8,1327.7,0.04411027]
[1673313012872,1.73276288,1327.8,1327.7,0.04411027]
[1673313013094,24.31051288,1327.8,1327.7,0.04411027]
[1673313013280,24.32651288,1327.8,1327.7,0.04411027]
[1673313014388,31.85553166,1327.8,1327.7,0.04411027]
[1673313020982,31.90553166,1327.8,1327.7,0.04411027]
[1673313022248,43.2344423,1327.8,1327.7,0.04411027]
[1673313022978,43.1844423,1327.8,1327.7,0.04411027]
[1673313024676,43.1844423,1327.8,1327.6,0.04033688]
[1673313024677,53.43760768,1327.8,1327.6,0.04033688]
[1673313024913,19.58992602,1327.7,1327.6,6.88e-06]
[1673313025229,30.1318,1327.5,1327.4,0.63840459]
[1673313025445,33.94546064,1327.5,1327.4,0.63840459]
[1673313028925,34.5201923,1327.5,1327.4,0.63840459]
[1673313029224,33.9549923,1327.5,1327.4,0.63840459]
[1673313030256,37.3649923,1327.5,1327.4,0.63840459]
[1673313033951,49.18205023,1327.5,1327.4,0.63840459]
[1673313034325,45.3119923,1327.5,1327.4,0.63840459]
[1673313035279,43.6069923,1327.5,1327.4,0.63840459]
[1673313037739,47.47815768,1327.5,1327.4,0.63840459]
[1673313038060,43.6069923,1327.5,1327.4,0.63840459]
[1673313040529,43.6069923,1327.5,1327.4,0.99355735]
[1673313042749,45.3119923,1327.5,1327.4,0.99355735]
[1673313044013,37.3649923,1327.5,1327.4,0.99355735]
[1673313044224,28.1270423,1327.5,1327.4,0.99355735]
[1673313044444,0.016,1327.5,1327.4,1.09649383]
[1673313044682,0.016,1327.6,1327.5,0.016]
[1673313044834,7.58207,1327.7,1327.5,0.016]
[1673313044835,15.08027,1327.7,1327.5,0.016]
[1673313045050,11.34573064,1327.7,1327.5,0.016]
[1673313045277,18.87793064,1327.7,1327.5,0.016]
[1673313045918,0.016,1327.7,1327.6,3.41]
[1673313046145,18.149,1327.8,1327.6,3.7526]
[1673313046469,18.149,1327.8,1327.7,1.705]
[1673313046777,25.68025,1327.8,1327.7,1.705]
[1673313047163,33.2115,1327.8,1327.7,1.705]
[1673313047372,25.68025,1327.8,1327.7,1.705]
[1673313047800,25.68025,1327.8,1327.6,1.771]
[1673313047801,33.2115,1327.8,1327.6,1.771]
[1673313048134,33.2115,1327.8,1327.6,1.705]
[1673313049039,33.2115,1327.8,1327.6,1.7010333]
[1673313049248,40.74275,1327.8,1327.6,1.7010333]
[1673313050663,44.5499423,1327.8,1327.5,11.057]
[1673313051291,44.5499423,1327.8,1327.5,9.352]
[1673313051519,3.79766064,1327.7,1327.5,9.352]
[1673313051816,22.59714,1327.6,1327.5,9.352]
[1673313051995,22.61314,1327.6,1327.5,0.082]
[1673313052204,22.61314,1327.6,1327.5,0.016]
[1673313052776,26.41080064,1327.6,1327.5,0.016]